bitfinex/quotes_ETHUSD_20251226
["timestamp","ask_amount","ask_price","bid_price","bid_amount"]
[1766720447337,0.9021,2961.6,2961.0,0.001]
[1766720457149,0.9041,2961.6,2961.0,0.03477237]
[1766720459346,0.9041,2961.6,2961.0,0.001]
[1766720460552,0.9041,2961.6,2961.0,3.3782371]
[1766720461449,0.9041,2961.6,2961.0,0.001]
[1766720461649,0.9041,2961.6,2961.0,1.10900034]
[1766720461820,0.002,2961.6,2961.0,1.10900034]
[1766720462320,0.002,2961.6,2961.0,1.07522797]
[1766720462946,0.9041,2961.6,2961.0,1.07522797]
[1766720463146,0.9041,2961.6,2961.0,0.001]
[1766720473781,0.9041,2961.6,2961.0,0.03477237]
[1766720474178,0.9041,2961.6,2961.0,3.41200948]
[1766720474749,0.9041,2961.6,2961.0,0.03477237]
[1766720474968,0.9041,2961.6,2961.0,3.41200168]
[1766720476971,0.9041,2961.6,2961.0,6.78923909]
[1766720477172,0.9041,2961.6,2961.0,3.37822931]
[1766720477352,0.9041,2961.6,2961.0,3.41200168]
[1766720477553,0.002,2961.6,2961.0,7.46837254]
[1766720477748,0.002,2961.6,2961.0,7.43460017]
[1766720477954,0.002,2961.6,2961.1,0.03377123]
[1766720478166,0.002,2961.6,2961.1,4.01832385]
[1766720478361,0.002,2961.6,2961.1,3.98455262]
[1766720478567,0.002,2961.6,2961.2,1.14191528]
[1766720479992,0.002,2961.6,2961.2,4.51891461]
[1766720481492,0.002,2961.6,2961.2,1.14191528]
[1766720481695,0.002,2961.6,2961.0,4.05733095]
[1766720482885,0.9964,2961.6,2961.0,4.05733095]
[1766720485375,0.9964,2961.6,2961.0,0.001]
[1766720486620,0.002,2961.6,2961.0,0.001]
[1766720489911,0.002,2961.6,2961.0,3.41196746]
[1766720490713,0.9944,2961.5,2961.0,3.41196746]
[1766720492780,0.002,2961.6,2961.0,3.41196746]
[1766720492985,0.9964,2961.6,2961.1,0.67903162]
[1766720493210,0.9964,2961.6,2961.0,3.37819509]
[1766720493397,0.9964,2961.6,2961.0,0.001]
[1766720493597,0.9964,2961.6,2961.0,3.37823222]
[1766720494518,0.9964,2961.6,2961.0,0.001]
[1766720501237,0.9944,2961.5,2961.0,0.001]
[1766720506748,1.00197391,2961.4,2960.8,0.001]
[1766720509960,0.9682,2961.4,2960.8,0.001]
[1766720516664,0.002,2962.8,2961.1,3.98582142]
[1766720516862,0.9682,2962.1,2961.3,28.293977]
[1766720517042,0.9682,2962.1,2961.4,0.03376781]
[1766720517248,0.9682,2962.1,2961.1,3.98582142]
[1766720517449,0.9682,2962.1,2960.9,30.0]
[1766720517762,0.9682,2962.1,2961.1,22.683279]
[1766720518069,0.9682,2962.1,2961.1,20.665279]
[1766720519375,0.9682,2962.1,2961.3,11.919234]
[1766720519561,0.9702,2962.1,2961.3,9.003234]
[1766720520861,0.9702,2962.1,2961.2,6.75401864]
[1766720521165,0.9702,2962.1,2961.3,0.67540186]
[1766720521671,0.9702,2962.1,2961.4,3.37678125]
[1766720525263,0.9702,2962.1,2961.4,2.3706]
[1766720525570,0.9702,2962.1,2961.0,0.886]
[1766720525571,0.9682,2962.0,2961.2,3.37695193]
[1766720525755,0.9682,2961.8,2961.1,3.37706922]
[1766720526102,0.9682,2961.8,2961.1,3.361754]
[1766720527344,4.26299488,2962.1,2961.2,19.714768]
[1766720527345,0.9702,2962.1,2961.2,19.714768]
[1766720527568,0.9702,2962.1,2961.4,17.678887]
[1766720527763,0.9702,2962.1,2961.4,9.015931]
[1766720528046,0.9682,2962.0,2961.4,5.368764]
[1766720528242,0.9682,2962.0,2961.2,13.102944]
[1766720528445,0.9682,2962.0,2961.2,16.47989748]
[1766720528679,0.9682,2962.0,2961.3,9.93259]
[1766720528985,0.9682,2962.0,2961.3,9.480212]
[1766720529188,0.9682,2962.0,2961.3,12.85708505]
[1766720529383,0.9682,2962.0,2961.3,3.37687305]
[1766720529696,0.9682,2962.0,2961.4,3.37677616]
[1766720529849,0.9682,2962.0,2961.5,0.03376667]
[1766720530886,0.9682,2962.0,2961.5,3.41042068]
[1766720531196,0.9682,2962.0,2961.5,3.37665401]
[1766720532671,0.9682,2962.0,2961.4,3.37678125]
[1766720532871,0.9682,2962.0,2961.5,0.74290604]
[1766720533073,0.8968033,2962.0,2961.6,15.94205253]
[1766720533289,0.8968033,2962.0,2961.6,12.63716]
[1766720533496,0.8968033,2962.0,2961.6,9.928874]
[1766720533703,0.8968033,2962.0,2961.7,1.067178]
[1766720533907,0.8968033,2962.0,2961.8,0.03376325]
[1766720534119,0.8968033,2962.0,2961.6,0.03376553]
[1766720534800,0.8968033,2962.0,2961.7,3.3764392]
[1766720535211,0.8968033,2962.0,2961.8,0.03376325]
[1766720535381,0.8988033,2962.0,2961.8,0.03376325]
[1766720535716,0.8988033,2962.0,2961.8,0.3747835]
[1766720539810,0.8988033,2962.0,2961.8,3.75109664]
[1766720540109,0.8988033,2962.0,2961.8,0.3747835]
[1766720541710,0.8988033,2962.0,2961.6,1.206158]
[1766720541911,0.8988033,2962.0,2961.4,3.37673363]
[1766720542711,0.8988033,2962.0,2961.2,3.37693307]
[1766720542917,0.8988033,2962.0,2961.3,3.987844]
[1766720543214,0.8988033,2962.0,2961.5,3.37664468]
[1766720543584,0.8988033,2962.0,2961.5,3.822136]
[1766720543780,0.8988033,2962.0,2961.5,2.626306]
[1766720543986,0.8988033,2962.0,2961.6,0.03376553]
[1766720544422,0.8988033,2962.0,2961.5,7.6909]
[1766720544597,0.8988033,2962.0,2961.6,0.03376553]
[1766720544794,0.8988033,2962.0,2961.7,0.03376439]
[1766720544998,0.8988033,2962.0,2961.5,7.69058]
[1766720545191,0.8988033,2962.0,2961.6,0.80630031]
[1766720545392,0.8988033,2962.0,2961.6,0.03376553]
[1766720545591,0.8988033,2962.0,2961.6,3.37655321]
[1766720545889,0.8988033,2962.0,2961.7,0.03376439]
[1766720546525,0.8988033,2962.0,2961.6,0.03376553]
[1766720550324,0.8988033,2962.0,2961.6,3.41031254]
[1766720553113,0.8988033,2962.0,2961.7,21.56617]
[1766720553318,0.8988033,2962.0,2961.8,0.03376325]
[1766720553514,0.8988033,2962.0,2961.7,0.03376439]
[1766720555629,0.8988033,2962.0,2961.7,3.41018948]
[1766720556933,0.002,2962.0,2961.7,3.41018948]
[1766720557122,0.9904,2962.0,2961.6,0.67880712]
[1766720557322,0.9904,2962.0,2961.6,8.995647]
[1766720558301,0.9904,2962.0,2961.7,8.46271139]
[1766720558506,0.9904,2962.0,2961.7,13.469616]
[1766720559127,0.9904,2962.0,2961.6,3.37654957]
[1766720559319,0.9904,2962.0,2961.7,0.03376439]
[1766720559516,0.002,2962.0,2961.7,0.03376439]
[1766720560616,0.9904,2962.0,2961.7,0.03376439]
[1766720563134,0.9904,2962.0,2961.7,3.41017672]
[1766720566040,0.9904,2962.0,2961.7,0.03376439]
[1766720567344,0.9904,2962.0,2961.7,3.41017654]
[1766720567751,0.002,2962.0,2961.7,3.41017654]
[1766720576858,0.002,2962.2,2961.9,3.9825175]
[1766720577054,0.993,2962.5,2961.8,30.0]
[1766720577243,0.993,2962.5,2961.8,3.9825175]
[1766720577759,0.993,2962.5,2961.7,7.82988604]
[1766720577965,0.993,2962.5,2961.8,0.79649457]
[1766720578459,0.993,2962.5,2961.9,1.01294715]
[1766720579070,0.993,2962.5,2961.9,4.38915381]
[1766720580064,0.993,2962.5,2961.9,8.37167131]
[1766720580267,0.993,2962.5,2962.0,0.03376097]
[1766720580468,0.993,2962.5,2962.0,1.29157478]
[1766720580840,0.993,2962.5,2962.1,1.01300187]
[1766720581041,0.993,2962.5,2962.2,0.03375869]
[1766720581768,0.993,2962.5,2962.1,4.38892473]
[1766720581961,0.995,2962.5,2962.1,4.38892473]
[1766720582163,0.995,2962.5,2962.2,0.90227304]
[1766720582468,0.03576325,2962.8,2962.2,4.88479054]
[1766720582681,0.993,2962.9,2962.6,3.9825175]
[1766720582869,0.993,2962.9,2962.7,0.03375299]
[1766720583168,0.993,2962.9,2962.4,3.9825175]
[1766720583372,0.993,2962.9,2962.5,0.39825175]
[1766720583573,0.993,2962.9,2962.6,0.993]
[1766720584077,0.993,2962.9,2962.7,0.03375299]
[1766720585192,0.03576325,2963.3,2962.8,3.9825175]
[1766720585475,0.995,2963.4,2962.9,4.75541861]
[1766720585676,0.995,2963.4,2962.9,0.77290111]
[1766720585970,0.995,2963.4,2962.9,0.7391504]
[1766720586187,0.995,2963.4,2963.0,3.37495781]
[1766720586360,0.995,2963.4,2963.1,0.03374843]
[1766720587882,0.993,2963.8,2963.3,3.9825175]
[1766720588090,0.993,2963.8,2963.5,3.9825175]
[1766720588245,0.002,2964.1,2963.7,3.9825175]
[1766720588451,0.993,2964.0,2963.5,7.35685129]
[1766720588663,0.993,2964.0,2963.6,0.03374274]
[1766720589994,0.002,2964.1,2963.7,3.9825175]
[1766720590167,0.002,2964.1,2963.8,3.37404683]
[1766720590370,0.002,2964.1,2963.9,0.03373932]
[1766720590600,0.995,2964.1,2963.7,14.004907]
[1766720590900,0.995,2964.1,2963.4,0.993]
[1766720590901,0.03576325,2964.1,2963.4,0.993]
[1766720591065,0.34292944,2964.1,2963.5,2.386603]
[1766720591271,0.34292944,2964.1,2963.5,2.007462]
[1766720591472,0.03376325,2964.0,2963.5,2.007462]
[1766720591678,0.03376325,2964.0,2963.5,0.9328]
[1766720591974,0.03376325,2964.0,2963.5,4.30717864]
[1766720592511,0.002,2964.1,2963.5,4.30717864]
[1766720592671,0.03576325,2964.1,2963.5,4.30717864]
[1766720593372,0.002,2964.1,2963.6,0.9328]
[1766720594069,0.002,2964.1,2963.7,0.9918416]
[1766720594275,0.002,2964.1,2963.8,0.9581]
[1766720594796,0.002,2964.1,2963.8,4.33212254]
[1766720595396,0.885,2964.5,2963.8,4.33212254]
[1766720595601,0.885,2964.5,2963.8,0.9581]
[1766720595790,1.3108178,2964.5,2963.8,0.9581]
[1766720596274,4.68407512,2964.5,2963.8,0.9581]
[1766720596470,1.3108178,2964.5,2963.8,0.9581]
[1766720596971,0.002,2964.1,2963.8,0.9581]
[1766720597899,0.002,2964.1,2963.5,4.33239808]
[1766720598103,0.002,2964.1,2963.6,3.40795888]
[1766720600102,0.002,2964.1,2963.6,4.36605888]
[1766720600266,0.002,2964.1,2963.6,5.14011194]
[1766720602100,0.002,2964.1,2963.6,0.77405306]
[1766720602311,0.002,2964.1,2963.5,3.3739]
[1766720602993,0.002,2964.1,2963.5,6.74825236]
[1766720603194,0.002,2964.1,2963.6,2.881887]
[1766720604377,0.002,2964.1,2963.5,4.428887]
[1766720604576,0.002,2964.1,2963.5,3.665287]
[1766720605406,0.002,2964.1,2963.6,2.881887]
[1766720607505,0.885,2964.0,2962.9,0.9581]
[1766720608203,0.18997044,2963.9,2962.9,0.9581]
[1766720608374,1.90784892,2964.0,2962.9,0.9581]
[1766720608574,6.74832134,2963.7,2962.5,4.33353404]
[1766720608790,6.74832134,2963.7,2962.5,0.9581]
[1766720608985,10.12248201,2963.7,2962.3,0.9581]
[1766720609312,1.69890751,2963.6,2962.3,0.9581]
[1766720609512,0.885,2963.5,2962.3,0.9581]
[1766720609675,2.933924,2963.5,2962.3,0.9581]
[1766720610008,0.01014455,2963.4,2962.3,0.9581]
[1766720610705,6.74923226,2963.3,2962.8,0.001]
[1766720610912,0.67593768,2963.2,2962.2,4.28396787]
[1766720611608,0.67593768,2963.2,2962.2,0.9081]
[1766720614210,4.05077411,2963.2,2962.2,0.9081]
[1766720614406,4.05077411,2963.2,2962.2,4.28396216]
[1766720614714,4.05077411,2963.2,2962.2,0.9081]
[1766720614914,0.74253902,2963.1,2962.2,0.9081]
[1766720616213,4.11740694,2963.1,2962.2,0.9081]
[1766720616391,6.74973584,2963.1,2962.2,0.9081]
[1766720616792,0.885,2963.0,2962.2,0.9081]
[1766720618009,4.25986792,2963.1,2962.2,0.9081]
[1766720618303,0.76346102,2963.0,2962.2,0.9081]
[1766720618508,4.13842679,2963.0,2962.2,0.9081]
[1766720620921,1.64846102,2963.0,2962.3,0.9081]
[1766720621122,0.885,2963.0,2962.3,0.9081]
[1766720621730,4.25995817,2963.0,2962.3,0.9081]
[1766720622019,0.885,2963.1,2962.5,0.9081]
[1766720622216,3.37473002,2963.2,2962.5,0.9081]
[1766720622593,0.885,2963.1,2962.5,0.9081]
[1766720622789,4.25973002,2963.2,2962.5,0.9081]
[1766720622990,0.885,2963.1,2962.6,0.94185413]
[1766720624527,0.885,2963.1,2962.4,0.9393]
[1766720625099,4.25986664,2963.1,2962.4,0.9393]
[1766720626801,7.63473328,2963.1,2962.4,0.9393]
[1766720627142,5.02333997,2963.1,2962.4,0.9393]
[1766720628316,5.02333997,2963.1,2962.2,0.9393]
[1766720628513,5.02333997,2963.1,2962.3,0.9393]
[1766720629955,5.02333997,2963.1,2962.3,4.31505253]
[1766720630275,0.885,2963.1,2962.4,0.97305641]
[1766720630404,3.37475424,2963.2,2962.4,0.97305641]
[1766720630405,4.25975424,2963.2,2962.4,0.97305641]
[1766720631432,3.37475424,2963.2,2962.4,0.97305641]
[1766720631637,4.25975424,2963.2,2962.4,0.97305641]
[1766720631836,5.12448924,2963.2,2962.4,0.97305641]
[1766720634918,0.864735,2963.2,2962.5,0.9393]
[1766720635118,3.37466001,2963.3,2962.5,0.9393]
[1766720635119,4.25966001,2963.3,2962.5,0.9393]
[1766720635344,0.002,2963.2,2962.5,0.9393]
[1766720638237,0.002,2963.2,2962.7,0.9393]
[1766720638755,0.002,2963.2,2962.9,0.9393]
[1766720639066,4.25910173,2963.8,2963.1,0.9393]
[1766720640416,5.12388548,2963.8,2963.1,0.9393]
[1766720640609,8.49802646,2963.8,2962.8,0.03375185]
[1766720640914,8.49802646,2963.8,2962.7,0.9393]
[1766720641109,0.885,2963.7,2962.7,4.31459755]
[1766720641414,1.83607479,2963.7,2962.8,0.43145976]
[1766720641848,1.83607479,2963.7,2962.7,0.9393]
[1766720642049,1.83607479,2963.7,2962.7,4.31459905]
[1766720642557,3.37427453,2963.6,2962.7,4.31459905]
[1766720643931,5.21226753,2963.7,2962.8,0.97305185]
[1766720644116,0.885,2963.6,2962.8,0.97305185]
[1766720644316,0.885,2963.6,2962.9,1.71166505]
[1766720644543,0.002,2963.7,2963.1,0.9393]
[1766720647264,0.002,2963.7,2963.1,3.37480477]
[1766720647464,0.002,2963.7,2963.2,0.9393]
[1766720648277,0.002,2963.7,2963.3,0.97304616]
[1766720653874,0.002,2963.7,2963.1,1.61878459]
[1766720654474,0.002,2963.7,2963.1,4.99361634]
[1766720654675,0.002,2963.7,2963.1,4.04981634]
[1766720654843,0.002,2963.7,2963.2,0.9438]
[1766720660185,0.002,2963.7,2963.4,0.9438]
[1766720660881,0.002,2963.7,2963.5,0.9438]
[1766720662989,0.002,2963.7,2963.5,4.31810899]
[1766720664183,0.002,2963.7,2963.5,0.9438]
[1766720666280,0.002,2963.7,2963.2,4.31847419]
[1766720667689,0.002,2963.7,2963.2,0.9438]
[1766720669197,0.002,2963.7,2963.2,4.31851222]
[1766720669487,0.002,2963.7,2963.2,0.9438]
[1766720671072,0.002,2963.7,2963.1,3.37481096]
[1766720671466,0.002,2963.7,2963.2,3.37472292]
[1766720671797,0.002,2963.7,2963.3,0.9438]
[1766720672494,0.002,2963.7,2963.2,3.37472292]
[1766720672795,0.002,2963.7,2963.1,3.37478953]
[1766720678068,0.002,2963.7,2963.0,0.001]
[1766720678270,0.002,2963.7,2963.1,0.9438]
[1766720679576,0.002,2963.7,2963.2,0.9775473]
[1766720681012,0.002,2963.7,2963.3,3.37461613]
[1766720681194,0.002,2963.7,2963.3,4.31841613]
[1766720682200,0.002,2963.7,2963.4,0.9055]
[1766720683808,0.002,2964.0,2963.4,0.9244]
[1766720683980,0.33976055,2964.0,2963.4,0.9244]
[1766720685131,0.002,2964.0,2963.4,0.95814502]
[1766720685281,0.002,2964.0,2963.5,0.9244]
[1766720695430,0.002,2964.0,2963.5,4.29877973]
[1766720695731,0.002,2964.0,2963.6,0.9244]
[1766720700610,0.002,2964.0,2963.3,3.37453686]
[1766720701108,0.002,2964.0,2963.5,0.001]
[1766720711249,3.3748297,2964.9,2963.5,0.001]
[1766720711250,0.002,2965.7,2963.6,0.52299344]
[1766720711422,11.01114131,2965.6,2963.6,1.01221234]
[1766720711627,0.01014455,2965.4,2963.7,0.0337416]
[1766720712226,1.02235689,2965.4,2963.7,0.0337416]
[1766720712745,1.02235689,2965.4,2963.8,4.38615821]
[1766720712746,10.11702018,2965.3,2963.8,4.38615821]
[1766720712941,10.11702018,2965.3,2963.9,0.03373932]
[1766720714045,10.11702018,2965.3,2963.8,4.38615821]
[1766720714345,1.11393771,2965.2,2963.8,4.38615821]
[1766720714536,7.63013506,2965.1,2963.8,1.01221234]
[1766720714937,7.63013506,2965.1,2963.9,0.03373932]
[1766720715139,11.00270259,2965.1,2963.8,1.01221234]
[1766720715343,1.21166403,2965.0,2963.8,1.01221234]
[1766720716455,6.74559006,2964.9,2963.8,1.01221234]
[1766720718149,3.37439303,2965.3,2964.4,3.97886807]
[1766720718342,3.37439303,2965.3,2964.5,0.43161931]
[1766720718343,0.002,2965.3,2964.5,0.43161931]
[1766720718847,0.002,2965.3,2964.6,1.01223283]
[1766720721546,0.002,2965.3,2964.4,3.37336202]
[1766720721756,0.002,2965.3,2964.4,1.01223283]
[1766720723167,0.002,2965.3,2964.5,0.0337325]
[1766720723468,0.002,2965.3,2964.5,0.56405895]
[1766720724057,0.002,2965.3,2964.5,0.53032645]
[1766720724636,0.002,2965.3,2964.6,0.03373136]
[1766720725571,0.002,2965.3,2964.6,3.40680633]
[1766720725758,0.002,2965.3,2964.7,1.01214745]
[1766720725959,0.002,2965.3,2964.8,0.03372908]
[1766720727044,0.002,2965.3,2964.7,1.01214745]
[1766720727845,0.002,2965.3,2964.7,1.04587767]
[1766720728062,0.002,2965.3,2964.7,1.48777672]
[1766720728570,0.002,2965.3,2964.7,0.47562927]
[1766720728873,0.002,2965.3,2964.8,1.01214745]
[1766720732575,0.002,2965.3,2964.9,3.97886807]
[1766720732754,0.002,2965.7,2965.0,0.9082]
[1766720732959,0.002,2965.7,2965.2,0.9082]
[1766720734278,0.002,2965.7,2965.3,0.9082]
[1766720734470,0.002,2965.7,2965.3,1.92016309]
[1766720735876,0.002,2965.7,2965.4,0.9082]
[1766720736382,0.002,2965.7,2965.4,4.28041314]
[1766720736678,0.002,2965.7,2965.5,1.43743762]
[1766720737258,0.002,2966.1,2965.6,0.9082]
[1766720737976,0.002,2966.1,2965.8,0.9082]
[1766720738168,3.37252535,2966.9,2965.8,0.9082]
[1766720738367,3.48754602,2966.8,2965.8,4.01258578]
[1766720738575,3.92490062,2966.8,2965.9,0.9082]
[1766720739281,3.92490062,2966.8,2966.1,3.97886807]
[1766720739282,0.116911,2966.8,2966.1,3.97886807]
[1766720739460,0.116911,2966.8,2966.2,0.9082]
[1766720740757,3.48756429,2966.8,2965.9,0.9082]
[1766720740947,0.34895643,2966.7,2965.7,1.01180609]
[1766720741380,0.35910098,2966.7,2965.3,0.9082]
[1766720741581,0.35910098,2966.7,2963.0,3.85114455]
[1766720741582,0.01014455,2966.3,2964.8,0.9082]
[1766720741759,0.01014455,2966.1,2964.8,0.9082]
[1766720741964,0.01014455,2966.1,2964.9,0.9993]
[1766720742203,0.01014455,2966.1,2964.8,3.37287611]
[1766720742204,1.768,2966.2,2965.0,3.97886807]
[1766720742480,3.54924494,2966.1,2965.2,3.97886807]
[1766720742652,3.54924494,2966.1,2965.2,4.97816807]
[1766720742985,0.884,2966.1,2965.5,0.9993]
[1766720744258,0.884,2966.1,2965.2,7.3512138]
[1766720744458,7.62687806,2966.1,2965.3,0.9056]
[1766720744658,7.62887806,2966.1,2965.3,0.9056]
[1766720744968,0.76288781,2966.0,2965.3,0.9056]
[1766720747286,0.886,2966.1,2965.4,0.9046]
[1766720749674,0.886,2966.1,2965.5,0.9046]
[1766720750072,0.002,2966.1,2965.5,0.9046]
[1766720750278,0.002,2966.1,2965.7,0.9046]
[1766720751064,3.37344043,2966.1,2965.4,0.9046]
[1766720751257,0.33734404,2966.0,2965.4,0.9046]
[1766720751872,0.002,2966.1,2965.4,0.9046]
[1766720752065,0.002,2966.1,2965.5,0.9046]
[1766720752688,3.37345231,2966.1,2965.5,0.9046]
[1766720752884,3.37345231,2966.1,2965.3,0.9056]
[1766720753989,0.002,2966.1,2965.3,0.9056]
[1766720754286,0.67644658,2966.1,2965.3,0.9056]
[1766720754993,0.67644658,2966.1,2965.0,4.27722729]
[1766720755189,0.67644658,2966.1,2965.1,0.9046]
[1766720755988,6.74308832,2966.0,2965.1,0.9046]
[1766720756294,0.884,2965.9,2965.1,0.9046]
[1766720756493,0.76270883,2965.8,2965.1,0.9046]
[1766720758198,4.13452525,2965.8,2965.1,0.9046]
[1766720759984,7.50634167,2965.8,2965.1,0.9046]
[1766720760182,7.50634167,2965.8,2964.7,0.9046]
[1766720760382,7.50634167,2965.8,2964.8,0.9046]
[1766720760702,0.83903417,2965.7,2964.8,0.9046]
[1766720761508,0.83903417,2965.7,2964.8,0.93832908]
[1766720761723,3.37181642,2965.8,2965.1,0.9046]
[1766720762409,3.37166732,2965.9,2965.1,0.9046]
[1766720762605,3.37166732,2965.9,2965.2,0.9046]
[1766720764935,6.74333464,2965.9,2965.2,0.9046]
[1766720765897,3.37166732,2965.9,2965.2,0.9046]
[1766720766092,4.20203719,2965.9,2965.2,0.9046]
[1766720769415,0.83036987,2965.9,2965.2,0.9046]
[1766720770013,3.37167076,2965.9,2965.2,0.9046]
[1766720770311,3.37367076,2965.9,2965.2,0.9046]
[1766720772622,0.002,2965.9,2965.2,0.9046]
[1766720772920,0.002,2965.9,2965.3,0.9046]
[1766720774113,0.002,2966.1,2965.3,0.9046]
[1766720774114,0.002,2966.1,2965.4,0.93622226]
[1766720774299,0.002,2966.1,2965.6,0.9025]
[1766720775314,0.002,2966.1,2965.1,0.001]
[1766720775315,0.884,2966.0,2965.1,0.001]
[1766720775510,0.884,2966.0,2965.1,0.9035]
[1766720776414,3.37165784,2965.9,2965.1,0.9035]
[1766720776744,0.42576578,2965.9,2965.1,0.9035]
[1766720776922,0.002,2966.1,2965.2,0.9025]
[1766720777092,0.002,2966.1,2965.2,0.93622453]
[1766720777718,0.002,2966.1,2965.2,0.9025]
[1766720778521,3.37345652,2966.1,2965.3,0.9025]
[1766720778722,0.002,2966.1,2965.5,0.9025]
[1766720780300,3.37075084,2966.7,2965.5,0.9025]
[1766720780499,7.62550168,2966.7,2965.6,3.37199892]
[1766720780704,0.77424127,2966.6,2965.7,0.9025]
[1766720782794,4.14515972,2966.6,2965.8,0.9025]
[1766720783826,0.77424127,2966.6,2965.8,0.9025]
[1766720783998,4.14512242,2966.6,2965.8,0.9025]
[1766720784525,0.77424127,2966.6,2965.8,0.9025]
[1766720784725,4.14515604,2966.6,2965.8,0.9025]
[1766720785019,0.83999118,2966.5,2965.8,0.9025]
[1766720785397,0.83999118,2966.5,2965.8,4.27425469]
[1766720785726,4.25485828,2966.7,2965.9,0.9025]
[1766720786230,0.116911,2966.8,2965.9,0.93621657]
[1766720786413,0.116911,2966.8,2966.2,0.9025]
[1766720786602,0.116911,2966.8,2965.8,3.37175469]
[1766720786803,3.48755605,2966.8,2965.9,0.9025]
[1766720787010,0.68600788,2966.7,2966.0,0.9025]
[1766720787204,0.002,2966.7,2966.0,0.9025]
[1766720787399,0.002,2966.7,2966.0,0.93621544]
[1766720789328,0.002,2966.9,2966.3,0.9025]
[1766720790415,0.002,2967.1,2966.2,3.97327237]
[1766720790416,0.002,2967.1,2966.5,3.97327237]
[1766720790618,0.002,2967.1,2966.7,0.9025]
[1766720791098,0.884,2967.4,2966.8,0.9025]
[1766720791630,4.25396461,2967.4,2966.5,0.9025]
[1766720791824,0.42539646,2967.3,2966.5,0.9025]
[1766720793631,3.79546831,2967.3,2966.5,0.9025]
[1766720794129,0.42539646,2967.3,2966.5,3.37090368]
[1766720794309,0.884,2967.4,2966.6,0.9025]
[1766720794512,0.884,2967.7,2966.7,0.9025]
[1766720794702,0.884,2967.7,2967.0,0.9025]
[1766720796131,4.25366292,2967.7,2967.0,0.9025]
[1766720796338,5.01617914,2967.7,2967.0,0.9025]
[1766720796635,4.25366292,2967.7,2967.0,0.9025]
[1766720797033,0.884,2967.7,2967.0,0.9025]
[1766720797621,3.36900202,2968.3,2967.0,0.9025]
[1766720797622,3.35847452,2968.2,2967.5,0.9025]
[1766720797823,0.33584745,2968.1,2967.5,0.9025]
[1766720798134,3.70505762,2968.1,2967.5,0.9025]
[1766720798333,0.33584745,2968.1,2967.5,0.9025]
[1766720798507,3.36897607,2968.3,2967.5,0.9025]
[1766720800603,6.73795214,2968.3,2967.5,0.9025]
[1766720800809,3.36897607,2968.3,2967.5,0.9025]
[1766720801349,0.884,2968.6,2967.6,0.9025]
[1766720802033,3.36870473,2968.5,2967.7,0.9025]
[1766720802334,4.25263516,2968.6,2967.7,0.9025]
[1766720802538,4.67789868,2968.6,2967.7,0.9025]
[1766720802909,0.002,2968.9,2967.9,3.97327237]
[1766720803115,0.002,2968.9,2968.0,0.9025]
[1766720803315,0.002,2968.9,2968.0,0.93619272]
[1766720803715,0.01014455,2968.8,2967.5,0.9106]
[1766720803940,10.1159183,2968.6,2967.5,0.9106]
[1766720804137,0.01014455,2968.4,2967.5,0.9106]
[1766720804340,0.884,2968.3,2967.5,0.9106]
[1766720806327,3.36904521,2968.2,2967.5,0.9106]
[1766720806528,0.884,2968.3,2967.5,0.9106]
[1766720806529,4.25296056,2968.3,2967.5,0.9106]
[1766720806738,5.01614508,2968.3,2967.5,0.9106]
[1766720806933,4.25296056,2968.3,2967.5,0.9106]
[1766720807121,7.62192112,2968.3,2967.5,0.9106]
[1766720809535,4.25296056,2968.3,2967.5,0.9106]
[1766720810411,0.884,2968.3,2967.6,0.925]
[1766720810611,0.884,2968.3,2967.7,0.925]
[1766720811826,3.36870473,2968.5,2967.7,0.925]
[1766720813151,4.25264389,2968.6,2967.7,0.925]
[1766720814420,0.002,2968.3,2967.7,0.925]
[1766720814729,0.002,2968.3,2967.9,0.925]
[1766720814926,0.884,2968.6,2967.9,0.925]
[1766720815245,3.36851001,2968.7,2967.9,0.925]
[1766720815447,6.73704773,2968.7,2967.9,0.925]
[1766720816222,0.884,2968.6,2967.9,0.925]
[1766720816423,0.76210477,2968.5,2967.9,0.925]
[1766720816848,0.76210477,2968.5,2967.5,0.925]
[1766720817431,6.73763642,2968.4,2967.5,0.925]
[1766720817633,3.36881821,2968.4,2967.5,0.925]
[1766720818132,6.73763642,2968.4,2967.5,0.925]
[1766720818332,0.74997412,2968.3,2967.5,0.925]
[1766720818552,0.74997412,2968.3,2967.6,0.03369726]
[1766720818743,0.74997412,2968.3,2967.4,0.883]
[1766720818744,0.74997412,2968.3,2967.7,0.925]
[1766720819045,6.73763642,2968.4,2967.7,0.925]
[1766720819423,6.73740946,2968.5,2967.7,0.925]
[1766720819634,10.10611419,2968.5,2967.7,0.925]
[1766720819834,10.10611419,2968.5,2967.2,0.925]
[1766720820033,1.09901142,2968.4,2967.2,0.925]
[1766720820550,1.09901142,2968.4,2967.3,0.925]
[1766720821451,6.73786342,2968.3,2967.3,0.925]
[1766720822442,6.73786342,2968.3,2967.0,0.001]
[1766720822443,0.01014455,2968.0,2967.0,0.001]
[1766720822764,0.01014455,2967.8,2965.9,3.37157763]
[1766720823074,0.01014455,2967.6,2966.1,0.925]
[1766720823367,0.01014455,2967.4,2966.1,0.925]
[1766720823538,10.99420118,2967.3,2966.1,0.925]
[1766720823724,1.10043457,2967.2,2966.1,0.925]
[1766720824054,1.11057912,2967.2,2966.1,0.925]
[1766720825651,6.74058844,2967.1,2966.1,0.925]
[1766720825855,10.11088266,2967.1,2966.1,0.925]
[1766720826055,0.01014455,2966.9,2965.8,0.001]
[1766720826359,0.01014455,2966.7,2965.8,0.001]
[1766720826535,0.01014455,2966.7,2965.5,0.001]
[1766720827055,0.01014455,2966.5,2965.5,0.001]
[1766720827229,0.01014455,2966.7,2965.5,0.926]
[1766720827431,0.01014455,2966.9,2965.5,0.926]
[1766720827632,6.74149728,2966.7,2965.5,0.926]